[Event "GER-ch Youth-U10 2022"]
[Site "Willingen"]
[Date "2022.06.10"]
[Round "10.14"]
[White "Rudolph, Simon"]
[Black "Chua, Daniel James"]
[Result "1-0"]
[ECO "C60"]
[WhiteElo "1361"]
[BlackElo "1314"]
[Annotator "NA RC COMBH"]
[PlyCount "159"]
[EventDate "2022.06.05"]
[EventType "swiss"]
[EventRounds "11"]
[EventCountry "GER"]
[SourceTitle "playchess.com"]
[Source "ChessBase"]
[SourceQuality "1"]
[TimeControl "40/4500+30:900+30"]

1. e4 {[%emt 0:00:05]} e5 {[%emt 0:00:32]} 2. Nf3 {[%emt 0:00:07]} Nc6 {[%emt 0:00:03]} 3. Bb5 {[%emt 0:00:09]} Nge7 {[%emt 0:00:06]} 4. O-O {[%emt 0:00:07]} g6 {[%emt 0:00:01]} 5. c3 {[%emt 0:00:14]} d6 {[%emt 0:00:25]} 6. d4 {[%emt 0:00:14]} Bd7 {[%emt 0:00:05]} 7. Bg5 {[%emt 0:00:57]} Bg7 {[%emt 0:01:50]} 8. Nbd2 {[%emt 0:02:22]} f6 {[%emt 0:00:39]} 9. Be3 {[%emt 0:00:36]} O-O {[%emt 0:00:12]} 10. Bc4+ {[%emt 0:00:56]} Kh8 {[%emt 0:00:15]} 11. d5 {[%emt 0:01:38]} Nb8 {[%emt 0:00:06]} 12. h4 {[%emt 0:00:52]} f5 {[%emt 0:00:27]} 13. exf5 {[%emt 0:01:15]} Nxf5 {[%emt 0:00:11]} 14. Ng5 {[%emt 0:01:19]} Nxh4 {[%emt 0:00:59]} 15. Ne6 {[%emt 0:00:41]} Bxe6 {[%emt 0:00:36]} 16. dxe6 {[%emt 0:00:08]} d5 {[%emt 0:00:10]} 17. e7 {[%emt 0:02:12]} Qxe7 {[%emt 0:01:18]} 18. Bxd5 {[%emt 0:00:20]} c6 {[%emt 0:06:23]} 19. Bb3 {[%emt 0:00:44]} Nf5 {[%emt 0:16:38]} 20. Ne4 {[%emt 0:01:36]} Nxe3 {[%emt 0:00:12]} 21. fxe3 {[%emt 0:00:09]} Nd7 {[%emt 0:02:50]} 22. Rxf8+ {[%emt 0:00:39]} Rxf8 {[%emt 0:01:40]} 23. Qd3 {[%emt 0:02:55]} Nc5 {[%emt 0:01:19]} 24. Nxc5 {[%emt 0:00:41]} Qxc5 {[%emt 0:00:02]} 25. Rf1 {[%emt 0:03:46]} Rxf1+ {[%emt 0:01:57]} 26. Kxf1 {[%emt 0:00:13]} Qe7 {[%emt 0:01:34]} 27. Qc4 {[%emt 0:00:52]} Qf8+ {[%emt 0:01:07]} 28. Qf7 {[%emt 0:00:59]} Qxf7+ {[%emt 0:00:29]} 29. Bxf7 {[%emt 0:00:11]} Bh6 {[%emt 0:00:01]} 30. Ke2 {[%emt 0:00:21]} Kg7 {[%emt 0:00:03]} 31. Bb3 {[%emt 0:00:25]} Kf6 {[%emt 0:00:09]} 32. Kf3 {[%emt 0:00:15]} Kf5 {[%emt 0:00:20]} 33. Bc2+ {[%emt 0:00:28]} Kf6 {[%emt 0:00:03]} 34. Bb3 {[%emt 0:00:15]} b6 {[%emt 0:00:12]} 35. Bc2 {[%emt 0:00:35]} a5 {[%emt 0:00:08]} 36. b3 {[%emt 0:00:37]} Bf8 {[%emt 0:00:11]} 37. a4 {[%emt 0:00:18]} Ba3 {[%emt 0:00:22]} 38. e4 {[%emt 0:00:40]} Kg5 {[%emt 0:00:41]} 39. g4 {[%emt 0:00:24]} c5 {[%emt 0:00:10]} 40. Bd3 {[%emt 0:00:33]} Bb2 {[%emt 0:00:13]} 41. Bc4 {[%emt 0:15:25]} Bxc3 {[%emt 0:15:10]} 42. Kg3 {[%emt 0:00:14]} h6 {[%emt 0:00:20]} 43. Bd5 {[%emt 0:00:18]} Be1+ {[%emt 0:00:07]} 44. Kf3 {[%emt 0:00:36]} Kh4 {[%emt 0:00:04]} 45. Bc4 {[%emt 0:00:11]} Kh3 {[%emt 0:01:25]} 46. Be6 {[%emt 0:00:19]} Kh4 {[%emt 0:00:16]} 47. Bc4 {[%emt 0:00:21]} h5 {[%emt 0:00:03]} 48. gxh5 {[%emt 0:00:18]} gxh5 {[%emt 0:00:09]} 49. Kg2 {[%emt 0:00:07]} Kg4 {[%emt 0:00:04]} 50. Bd5 {[%emt 0:00:26]} h4 {[%emt 0:00:14]} 51. Kh1 {[%emt 0:00:12]} Kf4 {[%emt 0:00:59]} 52. Kh2 {[%emt 0:00:16]} Bg3+ {[%emt 0:00:20]} 53. Kh1 {[%emt 0:00:11]} Kg4 {[%emt 0:00:02]} 54. Be6+ {[%emt 0:00:18]} Kf3 {[%emt 0:00:16]} 55. Bd5 {[%emt 0:00:09]} Ke3 {[%emt 0:00:21]} 56. Bc6 {[%emt 0:00:12]} Kd3 {[%emt 0:00:09]} 57. Bd5 {[%emt 0:00:39]} c4 {[%emt 0:00:18]} 58. bxc4 {[%emt 0:00:26]} Kc3 {[%emt 0:00:01]} 59. Bc6 {[%emt 0:01:17]} Kxc4 {[%emt 0:00:05]} 60. Bb5+ {[%emt 0:00:36]} Kd4 {[%emt 0:00:27]} 61. Bc6 {[%emt 0:00:15]} b5 {[%emt 0:00:43]} 62. axb5 {[%emt 0:00:19]} Bf4 {[%emt 0:00:09]} 63. b6 {[%emt 0:00:32]} Kc5 {[%emt 0:00:11]} 64. b7 {[%emt 0:00:11]} Kxc6 {[%emt 0:00:02]} 65. b8=Q {[%emt 0:03:49]} a4 {[%emt 0:00:12]} 66. Qe8+ {[%emt 0:00:10]} Kc5 {[%emt 0:00:03]} 67. Qxa4 {[%emt 0:00:11]} Bg3 {[%emt 0:00:02]} 68. Kg2 {[%emt 0:00:37]} Bf4 {[%emt 0:00:03]} 69. Kh3 {[%emt 0:00:23]} Bg3 {[%emt 0:00:02]} 70. Qd1 {[%emt 0:00:20]} Kc4 {[%emt 0:00:07]} 71. Qd5+ {[%emt 0:00:31]} Kc3 {[%emt 0:00:03]} 72. Kg4 {[%emt 0:00:27]} Kb4 {[%emt 0:00:05]} 73. Qc6 {[%emt 0:00:30]} Ka5 {[%emt 0:00:03]} 74. Qb7 {[%emt 0:00:30]} Ka4 {[%emt 0:00:04]} 75. Qb1 {[%emt 0:00:17]} Ka5 {[%emt 0:00:03]} 76. Kf3 {[%emt 0:00:18]} Bf4 {[%emt 0:00:19]} 77. Ke2 {[%emt 0:00:11]} h3 {[%emt 0:00:03]} 78. Kd3 {[%emt 0:00:08]} h2 {[%emt 0:00:09]} 79. Kc4 {[%emt 0:00:10]} h1=N {[%emt 0:00:15]} 80. Qb5# {[%emt 0:00:09]} 1-0

[Event "GER-ch Youth-U10 2022"]
[Site "Willingen"]
[Date "2022.06.10"]
[Round "10.15"]
[White "Van 't Hof, Eric"]
[Black "Kutz, Paul Matti"]
[Result "1/2-1/2"]
[ECO "C01"]
[WhiteElo "2081"]
[BlackElo "1202"]
[Annotator "TA"]
[PlyCount "81"]
[EventDate "2022.06.05"]
[EventType "swiss"]
[EventRounds "11"]
[EventCountry "GER"]
[SourceTitle "playchess.com"]
[Source "ChessBase"]
[SourceQuality "1"]
[TimeControl "40/4500+30:900+30"]

{[%evp 10,81,16,8,52,54,102,68,49,40,121,43,238,236,293,300,646,192,531,92,198,225,212,27,153,160,233,181,184,183,180,170,183,179,168,166,208,195,209,205,198,90,319,89,122,122,122,123,122,112,112,96,96,83,89,89,90,68,90,75,90,75,75,75,75,64,64,43,43,43,43,43,60,60]} 1. e4 {[%emt 0:00:02]} e6 {[%emt 0:00:11]} 2. d4 {[%emt 0:00:07]} d5 {[%emt 0:00:12]} 3. Nc3 {[%emt 0:00:08]} Bb4 {[%emt 0:00:22]} 4. exd5 {[%emt 0:00:11]} exd5 {[%emt 0:00:51]} 5. Bd3 {[%emt 0:00:11]} Nf6 {[%emt 0:01:11]} 6. Nge2 {[%emt 0:00:25]} c5 {[%emt 0:00:21] C01: French: Exchange Variation.} 7. dxc5 {[%emt 0:01:15]} d4 {[%emt 0:00:32] [#]} (7... O-O $14) 8. a3 $146 {[%emt 0:00:13]} (8. Nxd4 {looks sharper.} O-O 9. Be3 Bxc5 10. Ne6) ({Predecessor:} 8. Bb5+ Kf8 9. O-O a6 10. Nxd4 Qc7 11. Ba4 Bd7 12. Bb3 Nc6 13. Nxc6 Bxc6 14. Qd4 Qa5 15. Qc4 {1-0 (15) Caliguire,J (2088)-Smail,J ICCF email 2013}) 8... Bxc5 {[%emt 0:00:14]} 9. Ne4 {[%emt 0:00:19]} Bb6 {[%emt 0:01:36]} (9... Nxe4 $14 10. Bxe4 O-O) 10. O-O {[%emt 0:01:13]} (10. Bg5 $1 $16) 10... Nc6 $2 {[%emt 0:00:57]} (10... Nxe4 $14 11. Bxe4 O-O) 11. Bg5 $1 $18 {[%emt 0:00:45] Strongly threatening Nf4.} Be6 {[%emt 0:00:55]} 12. N2g3 {[%emt 0:01:01] Threatens to win with Nh5.} Qe7 $2 {[%emt 0:02:18]} (12... h6) 13. Re1 $2 {[%emt 0:00:40]} (13. Nh5) 13... h6 $2 {[%emt 0:03:07] [#]} (13... O-O-O 14. Nxf6 gxf6) 14. Bd2 $2 {[%emt 0:04:07]} (14. Nf5 $1 $18 {[%mdl 512] is more deadly.} Qf8 15. Nxf6+ gxf6 16. Bxf6) 14... O-O {[%emt 0:03:36]} (14... Nxe4 $16 15. Rxe4 (15. Nxe4 O-O-O $14) (15. Bxe4 O-O $14) 15... O-O-O) 15. Nxf6+ {[%emt 0:04:35]} Qxf6 {[%emt 0:00:08]} 16. Ne4 $2 {[%emt 0:00:25]} (16. Nh5 $18 Qh4 17. Re4) 16... Qe7 {[%emt 0:01:01] [#]} (16... Qh4 $11) 17. Qh5 $1 $16 {[%emt 0:08:11][%cal Od2h6] Bxh6! is the strong threat.} Bd8 {[%emt 0:01:34]} (17... f5 $16 {is a better defense.}) 18. Nc5 {[%emt 0:07:48]} Qh4 {[%emt 0:00:41]} 19. Qxh4 {[%emt 0:00:39]} Bxh4 {[%emt 0:00:09]} 20. g3 $36 {[%emt 0:01:08][%mdl 2048] Keeping Black busy.} Bf6 {[%emt 0:01:03]} 21. Nxe6 {[%emt 0:00:17]} fxe6 {[%emt 0:00:05]} 22. Rxe6 {[%emt 0:00:33]} Rfe8 {[%emt 0:00:18]} 23. Rae1 {[%emt 0:00:26]} Rxe6 {[%emt 0:00:17]} 24. Rxe6 {[%emt 0:00:22]} Ne5 {[%emt 0:00:39]} 25. Bf4 {[%emt 0:00:23]} (25. Be4 $18 {and the rest is easy.}) 25... Kf7 $2 {[%emt 0:00:21]} (25... Nxd3 $16 26. cxd3 Rc8) 26. Rd6 $2 {[%emt 0:00:36]} (26. Rxe5 $18 g5 27. Rb5 gxf4 28. Rxb7+ Ke6 29. gxf4) 26... Ke7 {[%emt 0:00:31]} 27. Bxe5 {[%emt 0:00:26]} Bxe5 {[%emt 0:00:06][%mdl 4096] Endgame KRB-KRB} 28. Rd5 {[%emt 0:00:30]} Bf6 {[%emt 0:00:10]} 29. Bf5 {[%emt 0:01:50] White is more active.} Rd8 {[%emt 0:00:22] Inhibits Rd7+.} 30. Rxd8 {[%emt 0:00:40]} Kxd8 {[%emt 0:00:08] KB-KB} 31. b3 {[%emt 0:00:18]} Ke7 {[%emt 0:00:11]} 32. Kf1 {[%emt 0:00:22]} Kd6 {[%emt 0:00:13]} 33. f3 {[%emt 0:00:24]} b6 {[%emt 0:00:11]} 34. h4 {[%emt 0:00:42]} Ke5 {[%emt 0:00:20]} 35. Be4 {[%emt 0:00:15]} Be7 {[%emt 0:00:32]} 36. a4 {[%emt 0:00:18]} g5 {[%emt 0:00:42]} 37. hxg5 {[%emt 0:00:17]} hxg5 {[%emt 0:00:07] White is slightly better.} 38. g4 {[%emt 0:00:17]} Kf4 {[%emt 0:00:09]} 39. Ke2 {[%emt 0:00:16]} Bb4 {[%emt 0:00:30]} 40. Kd3 {[%emt 0:00:26]} Bc3 {[%emt 0:00:12]} 41. Bc6 {[%emt 0:15:34] Weighted Error Value: White=0.57/Black=0.70} 1/2-1/2

[Event "GER-ch Youth-U10 2022"]
[Site "Willingen"]
[Date "2022.06.10"]
[Round "10.17"]
[White "Teng, David"]
[Black "Yao, Haiyang"]
[Result "1-0"]
[ECO "C41"]
[WhiteElo "1423"]
[BlackElo "1098"]
[Annotator "NA RC COMBH"]
[PlyCount "89"]
[EventDate "2022.06.05"]
[EventType "swiss"]
[EventRounds "11"]
[EventCountry "GER"]
[SourceTitle "playchess.com"]
[Source "ChessBase"]
[SourceQuality "1"]
[TimeControl "40/4500+30:900+30"]

1. e4 {[%emt 0:00:02]} e5 {[%emt 0:00:05]} 2. Nf3 {[%emt 0:00:09]} d6 {[%emt 0:00:10]} 3. d4 {[%emt 0:00:31]} Nd7 {[%emt 0:00:11]} 4. Bc4 {[%emt 0:00:27]} c6 {[%emt 0:00:25]} 5. O-O {[%emt 0:00:56]} Be7 {[%emt 0:00:08]} 6. dxe5 {[%emt 0:01:00]} dxe5 {[%emt 0:00:15]} 7. Ng5 {[%emt 0:00:45]} Bxg5 {[%emt 0:00:47]} 8. Qh5 {[%emt 0:00:12]} g6 {[%emt 0:01:08]} 9. Qxg5 {[%emt 0:00:25]} Qxg5 {[%emt 0:00:16]} 10. Bxg5 {[%emt 0:00:11]} h6 {[%emt 0:00:19]} 11. Be3 {[%emt 0:02:28]} Ngf6 {[%emt 0:00:25]} 12. Nc3 {[%emt 0:01:35]} Nf8 {[%emt 0:00:32]} 13. Rad1 {[%emt 0:01:22]} g5 {[%emt 0:01:06]} 14. f3 {[%emt 0:03:59]} Ng6 {[%emt 0:00:34]} 15. g3 {[%emt 0:03:31]} Rh7 {[%emt 0:00:34]} 16. Rd6 {[%emt 0:01:24]} Ke7 {[%emt 0:04:32]} 17. Bc5 {[%emt 0:01:12]} Nd7 {[%emt 0:02:44]} 18. Ba3 {[%emt 0:02:23]} Kd8 {[%emt 0:03:54]} 19. Rfd1 {[%emt 0:02:00]} Kc7 {[%emt 0:00:30]} 20. Kg2 {[%emt 0:01:33]} h5 {[%emt 0:01:47]} 21. Bxf7 {[%emt 0:01:04]} Rxf7 {[%emt 0:01:40]} 22. Rxg6 {[%emt 0:00:11]} g4 {[%emt 0:01:16]} 23. Bd6+ {[%emt 0:01:48]} Kb6 {[%emt 0:01:15]} 24. fxg4 {[%emt 0:04:03]} hxg4 {[%emt 0:00:47]} 25. Na4+ {[%emt 0:00:46]} Ka6 {[%emt 0:00:25]} 26. c4 {[%emt 0:03:06]} b6 {[%emt 0:00:16]} 27. Bb4 {[%emt 0:03:11]} Kb7 {[%emt 0:00:35]} 28. Rdd6 {[%emt 0:03:46]} Nb8 {[%emt 0:01:10]} 29. Bc3 {[%emt 0:02:46]} Bd7 {[%emt 0:01:33]} 30. Bxe5 {[%emt 0:06:21]} Na6 {[%emt 0:00:12]} 31. Bf4 {[%emt 0:01:45]} Raf8 {[%emt 0:01:31]} 32. e5 {[%emt 0:02:14]} Be8 {[%emt 0:02:14]} 33. Rh6 {[%emt 0:01:46]} Nb4 {[%emt 0:01:24]} 34. e6 {[%emt 0:00:45]} Rf5 {[%emt 0:00:30]} 35. Rh7+ {[%emt 0:01:38]} Ka6 {[%emt 0:00:36]} 36. c5 {[%emt 0:01:58]} Nxa2 {[%emt 0:00:25]} 37. Rd8 {[%emt 0:03:10]} Nc1 {[%emt 0:03:24]} 38. Re7 {[%emt 0:01:56]} Ne2 {[%emt 0:01:22]} 39. Rexe8 {[%emt 0:01:38]} Nxf4+ {[%emt 0:00:20]} 40. gxf4 {[%emt 0:00:15]} Rxe8 {[%emt 0:00:08]} 41. Rxe8 {[%emt 0:15:05]} Rxf4 {[%emt 0:15:21]} 42. Nc3 {[%emt 0:00:48]} bxc5 {[%emt 0:01:01]} 43. e7 {[%emt 0:00:54]} Rf7 {[%emt 0:00:13]} 44. Ne4 {[%emt 0:00:35]} Kb5 {[%emt 0:00:58]} 45. Nd6+ {[%emt 0:00:13]} 1-0

[Event "GER-ch Youth-U10 2022"]
[Site "Willingen"]
[Date "2022.06.10"]
[Round "10.18"]
[White "Wang, Kaiwen"]
[Black "Classen, Marnin"]
[Result "1-0"]
[ECO "C00"]
[WhiteElo "1151"]
[BlackElo "1168"]
[Annotator "NA RC COMBH"]
[PlyCount "111"]
[EventDate "2022.06.05"]
[EventType "swiss"]
[EventRounds "11"]
[EventCountry "GER"]
[SourceTitle "playchess.com"]
[Source "ChessBase"]
[SourceQuality "1"]
[TimeControl "40/4500+30:900+30"]

1. e4 {[%emt 0:00:04]} e6 {[%emt 0:00:08]} 2. b3 {[%emt 0:00:08]} d5 {[%emt 0:00:10]} 3. Bb2 {[%emt 0:00:09]} Nf6 {[%emt 0:00:10]} 4. e5 {[%emt 0:00:14]} Nfd7 {[%emt 0:00:15]} 5. Nf3 {[%emt 0:00:28]} Nc6 {[%emt 0:00:11]} 6. d4 {[%emt 0:00:13]} b6 {[%emt 0:01:46]} 7. Be2 {[%emt 0:00:51]} Na5 {[%emt 0:00:16]} 8. O-O {[%emt 0:00:53]} c5 {[%emt 0:00:14]} 9. c3 {[%emt 0:00:29]} Nc6 {[%emt 0:00:13]} 10. Nfd2 {[%emt 0:01:14]} Qh4 {[%emt 0:01:12]} 11. f4 {[%emt 0:01:44]} Be7 {[%emt 0:00:53]} 12. Bc1 {[%emt 0:04:08]} cxd4 {[%emt 0:00:31]} 13. Nf3 {[%emt 0:00:12]} Qh6 {[%emt 0:00:37]} 14. f5 {[%emt 0:00:15]} Qh5 {[%emt 0:03:42]} 15. Nxd4 {[%emt 0:00:10]} Qh4 {[%emt 0:00:33]} 16. Nxc6 {[%emt 0:00:09]} Bc5+ {[%emt 0:00:34]} 17. Nd4 {[%emt 0:01:19]} Nxe5 {[%emt 0:02:04]} 18. fxe6 {[%emt 0:10:06]} fxe6 {[%emt 0:04:11]} 19. Kh1 {[%emt 0:01:24]} Bd6 {[%emt 0:02:22]} 20. Qe1 {[%emt 0:01:42]} Qxe1 {[%emt 0:06:48]} 21. Rxe1 {[%emt 0:00:09]} O-O {[%emt 0:00:33]} 22. Bg5 {[%emt 0:01:48]} h6 {[%emt 0:00:28]} 23. Bh4 {[%emt 0:00:11]} Ng4 {[%emt 0:00:44]} 24. Bxg4 {[%emt 0:00:27]} Rf4 {[%emt 0:00:46]} 25. Bg3 {[%emt 0:00:22]} Rxg4 {[%emt 0:00:35]} 26. Bxd6 {[%emt 0:00:12]} Rg6 {[%emt 0:00:28]} 27. Nc6 {[%emt 0:00:51]} Kh7 {[%emt 0:00:27]} 28. Ne5 {[%emt 0:00:31]} Rf6 {[%emt 0:00:17]} 29. Nd2 {[%emt 0:00:25]} Bb7 {[%emt 0:00:23]} 30. Ndf3 {[%emt 0:00:40]} Rf5 {[%emt 0:00:39]} 31. g4 {[%emt 0:00:47]} Rf4 {[%emt 0:00:35]} 32. Kg2 {[%emt 0:02:15]} Rd8 {[%emt 0:00:32]} 33. Ba3 {[%emt 0:00:55]} d4 {[%emt 0:01:07]} 34. Kg3 {[%emt 0:00:58]} g5 {[%emt 0:03:05]} 35. Nxd4 {[%emt 0:00:26]} Rdf8 {[%emt 0:00:25]} 36. Bxf8 {[%emt 0:00:24]} Rxf8 {[%emt 0:00:15]} 37. Nxe6 {[%emt 0:00:10]} Re8 {[%emt 0:00:28]} 38. Nd4 {[%emt 0:00:15]} Rf8 {[%emt 0:00:16]} 39. Rf1 {[%emt 0:00:07]} Re8 {[%emt 0:01:03]} 40. Nc4 {[%emt 0:00:18]} Bd5 {[%emt 0:00:13]} 41. Rae1 {[%emt 0:15:09]} Rd8 {[%emt 0:15:20]} 42. Re7+ {[%emt 0:00:21]} Kg8 {[%emt 0:00:58]} 43. Ne6 {[%emt 0:00:24]} Bxe6 {[%emt 0:00:36]} 44. Rxe6 {[%emt 0:00:08]} Kg7 {[%emt 0:00:18]} 45. Re7+ {[%emt 0:00:16]} Kg8 {[%emt 0:00:11]} 46. Rxa7 {[%emt 0:00:13]} Rd3+ {[%emt 0:00:26]} 47. Rf3 {[%emt 0:00:07]} Rd8 {[%emt 0:00:50]} 48. Nxb6 {[%emt 0:00:24]} Kh8 {[%emt 0:00:14]} 49. c4 {[%emt 0:00:07]} Kg8 {[%emt 0:00:10]} 50. c5 {[%emt 0:00:06]} Rd1 {[%emt 0:00:22]} 51. c6 {[%emt 0:00:13]} Rc1 {[%emt 0:00:05]} 52. Rd3 {[%emt 0:00:10]} Rf1 {[%emt 0:00:24]} 53. c7 {[%emt 0:00:14]} Rf8 {[%emt 0:00:17]} 54. c8=Q {[%emt 0:00:06]} Rxc8 {[%emt 0:00:39]} 55. Nxc8 {[%emt 0:00:07]} Kf8 {[%emt 0:00:15]} 56. Rd8# {[%emt 0:00:08]} 1-0

[Event "GER-ch Youth-U10 2022"]
[Site "Willingen"]
[Date "2022.06.10"]
[Round "10.19"]
[White "Heitmann, Erik"]
[Black "Hagn, Tobias"]
[Result "0-1"]
[ECO "D15"]
[WhiteElo "1287"]
[BlackElo "1337"]
[Annotator "NA RC COMBH"]
[PlyCount "116"]
[EventDate "2022.06.05"]
[EventType "swiss"]
[EventRounds "11"]
[EventCountry "GER"]
[SourceTitle "playchess.com"]
[Source "ChessBase"]
[SourceQuality "1"]
[TimeControl "40/4500+30:900+30"]

1. d4 {[%emt 0:00:01]} d5 {[%emt 0:00:10]} 2. c4 {[%emt 0:00:45]} c6 {[%emt 0:00:09]} 3. Nc3 {[%emt 0:01:15]} Nf6 {[%emt 0:00:15]} 4. Nf3 {[%emt 0:00:25]} dxc4 {[%emt 0:00:12]} 5. e4 {[%emt 0:00:18]} b5 {[%emt 0:00:26]} 6. Be2 {[%emt 0:01:33]} e6 {[%emt 0:01:45]} 7. O-O {[%emt 0:01:05]} Bb4 {[%emt 0:01:25]} 8. Bg5 {[%emt 0:01:34]} h6 {[%emt 0:01:47]} 9. Bxf6 {[%emt 0:00:59]} Qxf6 {[%emt 0:00:16]} 10. e5 {[%emt 0:01:48]} Qd8 {[%emt 0:00:22]} 11. Nd2 {[%emt 0:00:35]} Qxd4 {[%emt 0:00:56]} 12. Rc1 {[%emt 0:00:40]} O-O {[%emt 0:01:01]} 13. Ndb1 {[%emt 0:01:49]} Qxd1 {[%emt 0:00:47]} 14. Rfxd1 {[%emt 0:00:07]} Nd7 {[%emt 0:00:57]} 15. Bf3 {[%emt 0:00:15]} Nxe5 {[%emt 0:02:02]} 16. a3 {[%emt 0:01:46]} Nxf3+ {[%emt 0:00:49]} 17. gxf3 {[%emt 0:00:06]} Be7 {[%emt 0:01:42]} 18. Nd2 {[%emt 0:00:21]} Bg5 {[%emt 0:00:51]} 19. Nce4 {[%emt 0:00:10]} Bf4 {[%emt 0:00:51]} 20. b3 {[%emt 0:00:46]} cxb3 {[%emt 0:00:40]} 21. Rxc6 {[%emt 0:00:18]} Bb7 {[%emt 0:02:07]} 22. Rc5 {[%emt 0:02:43]} Rfd8 {[%emt 0:02:53]} 23. Rxb5 {[%emt 0:08:29]} Bxe4 {[%emt 0:00:43]} 24. fxe4 {[%emt 0:00:31]} Rxd2 {[%emt 0:00:34]} 25. Rxd2 {[%emt 0:00:27]} Bxd2 {[%emt 0:00:10]} 26. Rxb3 {[%emt 0:00:07]} Rc8 {[%emt 0:02:50]} 27. Rb7 {[%emt 0:00:54]} a5 {[%emt 0:00:55]} 28. Rd7 {[%emt 0:00:50]} Bc1 {[%emt 0:01:51]} 29. Ra7 {[%emt 0:00:19]} Bxa3 {[%emt 0:00:29]} 30. Rxa5 {[%emt 0:00:07]} Be7 {[%emt 0:00:38]} 31. Kg2 {[%emt 0:00:13]} Bg5 {[%emt 0:01:15]} 32. Kg3 {[%emt 0:00:23]} Rc3+ {[%emt 0:00:42]} 33. f3 {[%emt 0:00:19]} Bd2 {[%emt 0:00:23]} 34. Ra8+ {[%emt 0:00:42]} Kh7 {[%emt 0:00:11]} 35. Ra7 {[%emt 0:00:29]} Kg6 {[%emt 0:00:17]} 36. Ra1 {[%emt 0:00:51]} Rc1 {[%emt 0:00:27]} 37. Ra2 {[%emt 0:01:26]} Be3 {[%emt 0:00:44]} 38. Rg2 {[%emt 0:01:26]} Rg1 {[%emt 0:00:26]} 39. Rxg1 {[%emt 0:00:09]} Bxg1 {[%emt 0:00:07]} 40. f4 {[%emt 0:00:19]} f5 {[%emt 0:00:08]} 41. e5 {[%emt 0:15:43]} Kh5 {[%emt 0:15:15]} 42. h3 {[%emt 0:02:20]} g5 {[%emt 0:00:58]} 43. fxg5 {[%emt 0:01:55]} hxg5 {[%emt 0:00:17]} 44. Kg2 {[%emt 0:01:14]} Bd4 {[%emt 0:00:11]} 45. Kf3 {[%emt 0:00:07]} Bxe5 {[%emt 0:00:07]} 46. Ke3 {[%emt 0:00:15]} Kh4 {[%emt 0:00:07]} 47. Kf2 {[%emt 0:00:06]} Kxh3 {[%emt 0:00:07]} 48. Kg1 {[%emt 0:00:06]} g4 {[%emt 0:00:18]} 49. Kh1 {[%emt 0:00:09]} g3 {[%emt 0:00:08]} 50. Kg1 {[%emt 0:00:05]} Bd4+ {[%emt 0:00:05]} 51. Kf1 {[%emt 0:02:01]} g2+ {[%emt 0:00:07]} 52. Ke2 {[%emt 0:00:06]} g1=Q {[%emt 0:00:09]} 53. Kd3 {[%emt 0:00:08]} Qe3+ {[%emt 0:00:07]} 54. Kc4 {[%emt 0:00:06]} Qc3+ {[%emt 0:00:07]} 55. Kb5 {[%emt 0:00:15]} Qc5+ {[%emt 0:00:04]} 56. Ka4 {[%emt 0:00:15]} Qb6 {[%emt 0:00:09]} 57. Ka3 {[%emt 0:00:10]} Qb5 {[%emt 0:00:04]} 58. Ka2 {[%emt 0:00:47]} Qb2# {[%emt 0:00:03]} 0-1